bitfinex/quotes_ETHUSD_20220109
["timestamp","ask_amount","ask_price","bid_price","bid_amount"]
[1641723254083,0.00185792,3089.6,3089.5,21.11897307]
[1641723254484,0.00185792,3089.6,3089.5,20.63610854]
[1641723255385,0.00185792,3089.6,3089.5,40.56110854]
[1641723255784,0.00185792,3089.6,3089.5,27.06961067]
[1641723256486,0.00185792,3089.6,3089.5,11.61961067]
[1641723256686,0.00185792,3089.6,3089.5,8.12634647]
[1641723257589,0.00185792,3089.6,3089.4,2.75803864]
[1641723257590,1.62141792,3089.6,3089.4,2.75803864]
[1641723258033,0.0012895,3089.5,3089.4,2.75803864]
[1641723258237,0.0012895,3089.5,3089.4,0.01064892]
[1641723259734,0.0012895,3089.5,3089.4,2.7689951]
[1641723261580,0.0012895,3089.5,3089.4,9.2189951]
[1641723262580,0.0012895,3089.5,3089.4,13.2189951]
[1641723263180,0.0012895,3089.5,3089.4,9.20834618]
[1641723264581,0.0012895,3089.5,3089.4,22.55834618]
[1641723265340,0.0012895,3089.5,3089.4,26.69515029]
[1641723265933,0.0012895,3089.5,3089.4,9.20834618]
[1641723266133,1.94435893,3090.5,3089.5,15.15]
[1641723266535,0.00454739,3090.3,3089.5,15.15]
[1641723266734,0.00454739,3090.3,3089.5,15.95946]
[1641723266935,0.00397897,3090.2,3089.6,2.75783529]
[1641723267338,0.00341054,3090.1,3089.6,2.75783529]
[1641723267536,0.00341054,3090.1,3089.7,0.465]
[1641723267739,0.00284212,3090.0,3089.8,0.80937]
[1641723267940,0.00284212,3090.0,3089.9,30.56]
[1641723268140,1.94435893,3090.5,3089.9,11.7]
[1641723268338,1.94435893,3090.5,3090.1,2.4278165]
[1641723268540,1.94435893,3090.5,3090.2,0.01213911]
[1641723268541,0.00511581,3090.4,3090.2,0.01213911]
[1641723268983,0.00454739,3090.3,3090.2,0.01213911]
[1641723269384,0.00454739,3090.3,3090.2,19.81213911]
[1641723269686,0.00454739,3090.3,3090.1,0.8092722]
[1641723269884,0.00454739,3090.3,3090.0,1.23121894]
[1641723270086,1.94435893,3090.5,3090.0,1.23121894]
[1641723270087,0.00397897,3090.2,3090.0,1.23121894]
[1641723270291,0.00397897,3090.2,3090.1,1.2312186]
[1641723270490,1.94435893,3090.5,3090.1,1.2312186]
[1641723270887,1.94435893,3090.5,3089.9,2.75743912]
[1641723270888,0.00511581,3090.4,3089.9,2.75743912]
[1641723271287,0.00454739,3090.3,3089.9,2.75743912]
[1641723271687,0.00397897,3090.2,3089.9,2.75743912]
[1641723272089,1.94435893,3090.5,3089.9,2.75743912]
[1641723272090,0.00341054,3090.1,3089.9,2.75743912]
[1641723272491,0.00284212,3090.0,3089.9,2.75743912]
[1641723273327,0.00284212,3090.0,3089.9,17.00743912]
[1641723275329,0.00284212,3090.0,3089.9,22.15743912]
[1641723275735,4.212e-05,3090.0,3089.9,41.02969098]
[1641723276237,1.94435893,3090.5,3090.1,0.80914]
[1641723276488,0.0294806,3090.6,3090.5,21.74435893]
[1641723276687,0.80914,3091.8,3090.6,16.35]
[1641723277689,0.89,3091.8,3090.6,16.35]
[1641723277888,0.80922,3091.7,3090.6,16.35]
[1641723278088,0.80923,3091.4,3090.8,0.01058853]
[1641723278990,0.00909477,3091.6,3090.8,0.01058853]
[1641723279390,0.00852635,3091.5,3090.8,0.01058853]
[1641723279689,0.00795793,3091.4,3090.8,0.01058853]
[1641723279990,0.0073895,3091.3,3090.8,0.81975783]
[1641723280248,0.0073895,3091.3,3090.8,0.01058853]
[1641723280437,0.00682108,3091.2,3090.8,0.01058853]
[1641723280634,1.85281589,3090.7,3090.5,1.94435893]
[1641723281135,0.00341054,3090.6,3090.5,1.94435893]
[1641723283340,0.00341054,3090.6,3090.5,11.69435893]
[1641723284480,0.00341054,3090.6,3090.5,14.45153276]
[1641723286286,0.00341054,3090.6,3090.5,19.50153276]
[1641723286486,0.00341054,3090.6,3090.5,14.45153276]
[1641723286885,0.00341054,3090.6,3090.5,15.26067276]
[1641723287487,0.00341054,3090.6,3090.5,34.12067276]
[1641723287740,0.00341054,3090.6,3090.5,35.88567276]
[1641723287934,0.00341054,3090.6,3090.5,40.0212902]
[1641723288537,0.0294806,3091.8,3090.6,19.8]
[1641723288736,0.0294806,3091.8,3091.1,1.61797]
[1641723289035,0.00625266,3091.7,3091.2,0.80898]
[1641723289536,0.00568423,3091.6,3091.2,0.80898]
[1641723289735,0.00568423,3091.6,3091.2,1.6179412]
[1641723289936,0.00511581,3091.5,3091.2,1.6179412]
[1641723290137,0.00511581,3091.5,3091.3,2.75678272]
[1641723290336,0.00454739,3091.4,3091.3,2.75678272]
[1641723291143,0.00454739,3091.4,3091.3,20.50678272]
[1641723292383,0.00454739,3091.4,3091.3,40.17572272]
[1641723293585,0.00454739,3091.4,3091.3,21.31572272]
[1641723293785,0.00454739,3091.4,3091.3,40.17572272]
[1641723293982,0.00454739,3091.4,3091.3,41.59272756]
[1641723294683,0.00454739,3091.4,3091.3,21.31572272]
[1641723295339,0.00454739,3091.4,3091.3,2.75678272]
[1641723296833,0.00454739,3091.4,3091.2,2.75687601]
[1641723297234,0.00397896,3091.3,3091.2,2.75687601]
[1641723298035,0.00397896,3091.3,3091.2,10.85687601]
[1641723298236,0.00397896,3091.3,3091.2,2.75687601]
[1641723300084,0.00397896,3091.3,3091.2,13.05687601]
[1641723301086,0.00397896,3091.3,3091.2,22.55687601]
[1641723301288,0.00397896,3091.3,3091.2,42.01687601]
[1641723301487,0.00397896,3091.3,3091.2,44.4268337]
[1641723302933,0.00397896,3091.3,3091.2,48.56170279]
[1641723303133,0.00397896,3091.3,3091.2,6.8917451]
[1641723304835,0.00397896,3091.3,3091.2,2.75687601]
[1641723305034,0.00397896,3091.3,3091.2,18.30687601]
[1641723306038,0.00397896,3091.3,3091.2,2.75687601]
[1641723306241,0.02915258,3091.9,3091.2,2.75687601]
[1641723306242,0.02007679,3091.9,3091.2,2.75687601]
[1641723306485,0.80915,3091.8,3091.2,2.75687601]
[1641723306688,0.00284212,3091.8,3091.2,2.75687601]
[1641723306986,0.00284212,3091.8,3091.0,2.75694801]
[1641723307585,0.81195212,3091.8,3090.9,1.23210235]
[1641723307985,0.00284212,3091.8,3091.0,0.00170527]
[1641723308187,0.00284212,3091.8,3091.1,2.75688025]
[1641723308786,0.00284212,3091.8,3091.0,8.12561714]
[1641723308984,0.81191212,3091.8,3091.0,8.12561714]
[1641723309185,2.20775089,3091.8,3091.2,2.75678852]
[1641723309390,0.13123905,3091.5,3091.2,2.75678852]
[1641723309586,0.08086,3091.4,3091.2,2.75678852]
[1641723309786,0.89023,3091.4,3091.2,2.75678852]
[1641723310260,10.72673827,3091.3,3091.2,2.75678852]
[1641723310450,10.72673827,3091.3,3091.2,8.852e-05]
[1641723310648,2.6496124,3090.9,3090.4,2.46582548]
[1641723310849,15.05,3090.7,3090.4,2.865e-05]
[1641723311049,1.08089,3090.6,3090.2,3.28776731]
[1641723311248,8.46999,3090.6,3090.2,3.28776731]
[1641723311452,8.35973,3090.4,3090.3,0.00454739]
[1641723311650,15.91192,3090.4,3090.3,0.00454739]
[1641723311849,16.21192,3090.4,3090.3,0.00454739]
[1641723312056,15.91192,3090.4,3090.0,0.00625266]
[1641723312251,1.8096,3090.3,3090.0,0.00625266]
[1641723312450,6.4713,3090.2,3090.0,0.00625266]
[1641723312852,7.2809,3090.2,3090.0,0.00625266]
[1641723313053,4.7685,3090.1,3090.0,0.00625266]
[1641723313655,0.9685,3090.1,3090.0,0.00625266]
[1641723313855,1.9685,3090.1,3090.0,0.00625266]
[1641723314082,0.9685,3090.1,3090.0,0.00625266]
[1641723314684,1.09973905,3090.1,3090.0,0.00625266]
[1641723314881,1.2309781,3090.1,3090.0,0.00625266]
[1641723315882,1.2309781,3090.1,3090.0,19.80625266]
[1641723316682,6.4713,3090.2,3090.1,19.8]
[1641723316683,7.81e-05,3090.2,3090.1,19.8]
[1641723317082,7.81e-05,3090.2,3090.1,19.80568424]
[1641723317287,7.81e-05,3090.2,3090.1,39.26568424]
[1641723317744,7.81e-05,3090.2,3090.1,39.73068424]
[1641723317931,9.05e-05,3090.9,3090.2,19.8]
[1641723318131,1.94352128,3091.9,3090.6,19.8]
[1641723318132,1.87575194,3091.7,3090.6,19.8]
[1641723318332,1.87575194,3091.7,3090.8,0.80902]
[1641723318533,0.00170527,3091.6,3090.9,3.90744419]
[1641723318732,0.00170527,3091.6,3090.9,3.90971788]
[1641723318934,0.00113685,3091.5,3091.0,0.00170527]
[1641723319333,0.00113685,3091.5,3090.8,0.00284211]
[1641723319733,0.80933,3091.3,3090.8,0.00284211]
[1641723319936,0.80928,3091.2,3090.8,0.00284211]
[1641723321580,1.6185861,3091.2,3090.8,0.00284211]
[1641723321781,0.80933,3091.0,3090.8,0.00284211]
[1641723322182,1.61862,3091.3,3090.8,0.00284211]
[1641723322587,2.4280249,3091.2,3090.8,0.00284211]
[1641723322781,0.80934,3091.0,3090.8,0.00284211]
[1641723324184,0.80927,3091.2,3090.8,0.00284211]
[1641723324388,0.81042685,3091.5,3090.8,0.00284211]
[1641723324389,0.00113685,3091.5,3090.8,0.00284211]
[1641723325241,0.00113685,3091.5,3090.8,3.72377238]
[1641723325431,0.00113685,3091.5,3090.8,0.00284211]
[1641723325630,0.00113685,3091.5,3090.9,0.00227369]
[1641723325831,0.00113685,3091.5,3090.8,3.82678106]
[1641723326030,0.00113685,3091.5,3090.9,0.00227369]
[1641723329380,0.00113685,3091.5,3091.0,0.08086]
[1641723329582,0.00113685,3091.5,3090.9,0.08313369]
[1641723329782,0.00113685,3091.5,3091.1,0.00113684]
[1641723329981,0.00113685,3091.5,3091.0,0.00170527]
[1641723330585,0.00113685,3091.5,3090.9,0.00227369]
[1641723330781,0.00113685,3091.5,3091.0,0.08086]
[1641723330983,0.00113685,3091.5,3091.0,2.83780936]
[1641723331181,0.00113685,3091.5,3091.1,0.00113684]
[1641723331882,1.61962685,3091.5,3091.1,2.75817582]
[1641723332081,1.6185531,3091.4,3091.1,2.75817582]
[1641723332281,1.00113685,3091.5,3091.1,2.75817582]
[1641723332482,1.00113685,3091.5,3091.1,0.00113684]
[1641723332483,1.0,3091.4,3091.1,0.00113684]
[1641723332733,0.00113685,3091.5,3091.1,0.00113684]
[1641723332930,0.00113685,3091.5,3091.2,2.70711265]
[1641723333133,0.8092945,3091.4,3091.2,2.70711265]
[1641723333330,0.80932,3091.3,3091.2,2.70711265]
[1641723333932,0.80932,3091.3,3091.0,0.00170527]
[1641723334331,0.80932,3091.3,3090.8,0.00284211]
[1641723334731,0.00113685,3091.5,3090.8,0.00284211]
[1641723334933,0.81032685,3091.5,3090.8,0.00284211]
[1641723335933,0.00113685,3091.5,3090.8,0.00284211]
[1641723336579,0.00113685,3091.5,3090.8,0.08370211]
[1641723336783,0.80921,3091.4,3090.8,0.08370211]
[1641723336986,0.80921,3091.4,3090.9,0.00227369]
[1641723337379,0.80921,3091.4,3090.8,0.00284211]
[1641723337578,0.00113685,3091.5,3090.8,0.00284211]
[1641723338283,0.81032685,3091.5,3090.8,0.00284211]
[1641723338681,0.00113685,3091.5,3090.8,0.00284211]
[1641723339380,1.33050986,3091.5,3090.8,0.00284211]
[1641723339983,0.00113685,3091.5,3090.8,0.00284211]
[1641723342841,0.00113685,3091.5,3090.8,0.08370211]
[1641723343344,0.00113685,3091.5,3090.9,0.00227369]
[1641723343542,0.00113685,3091.5,3091.0,0.08086]
[1641723343982,0.00113685,3091.5,3091.1,0.00113684]
[1641723344583,0.00113685,3091.5,3091.0,0.00170527]
[1641723347085,3.23017835,3091.8,3091.1,6.7]
[1641723347284,44.51873381,3091.9,3091.1,6.7]
[1641723347285,0.8092,3091.6,3091.1,6.7]
[1641723347488,0.8092,3091.6,3091.2,0.00170527]
[1641723349234,0.00113685,3091.7,3091.2,0.00170527]
[1641723350238,1.12113007,3091.5,3091.2,0.00170527]
[1641723350438,1.42113007,3091.5,3091.2,0.00170527]
[1641723350638,1.42113007,3091.5,3090.9,0.00341054]
[1641723350639,0.89023,3091.4,3090.9,0.00341054]
[1641723350836,0.89023,3091.4,3090.8,0.00397896]
[1641723351037,0.8094673,3091.2,3090.8,0.00397896]
[1641723351241,0.08086,3091.1,3090.8,0.00397896]
[1641723351484,10.20281643,3090.9,3090.8,0.00397896]
[1641723351684,11.79908643,3090.9,3090.4,0.00625266]
[1641723351883,3.4288118,3090.8,3090.1,0.00795793]
[1641723352085,0.38089,3090.7,3090.1,0.00795793]
[1641723352285,0.68089,3090.7,3090.1,0.00795793]
[1641723352486,2.42925,3090.3,3090.1,0.00795793]
[1641723352686,14.05099,3090.2,3090.1,0.00795793]
[1641723352886,6.55099,3090.2,3090.1,0.00795793]
[1641723353185,8.15099,3090.2,3090.1,0.00795793]
[1641723353586,15.77801067,3090.2,3090.1,0.00795793]
[1641723353792,17.39752907,3090.2,3090.1,0.00795793]
[1641723354285,14.2,3090.1,3090.0,2.693e-05]
[1641723354487,13.1244595,3090.1,3089.9,2.75743912]
[1641723354685,0.89067,3090.0,3089.9,2.75743912]
[1641723355087,0.89067,3090.0,3089.9,2.75857596]
[1641723358150,1.89067,3090.0,3089.9,2.75857596]
[1641723358987,0.80978,3090.0,3089.9,2.75857596]
[1641723359385,6.4701,3090.1,3089.9,2.75857596]
[1641723366595,7.27964,3090.1,3089.9,2.75857596]
[1641723367194,6.4701,3090.1,3089.9,2.75857596]
[1641723368394,1.0,3090.0,3089.9,2.75857596]
[1641723368594,1.08089,3090.0,3089.9,2.75857596]
[1641723368794,1.68089,3090.0,3089.9,2.75857596]
[1641723368994,2.49045,3090.0,3089.9,2.75857596]
[1641723369195,5.41858586,3089.9,3089.7,4.1359122]
[1641723369399,14.201,3089.8,3089.7,4.1359122]
[1641723369595,15.501,3089.8,3089.7,4.1359122]
[1641723369795,15.501,3089.8,3089.7,4.13704905]
[1641723369995,15.901,3089.8,3089.7,4.13704905]
[1641723370253,16.71085,3089.8,3089.7,4.13704905]
[1641723370839,16.11085,3089.8,3089.7,4.13704905]
[1641723371040,16.41085,3089.8,3089.7,4.13704905]
[1641723371947,16.41085,3089.8,3089.7,4.08704905]
[1641723372545,16.71085,3089.8,3089.7,4.08704905]
[1641723372744,9.06085,3089.8,3089.7,4.08704905]
[1641723374807,7.46085,3089.8,3089.7,4.08704905]
[1641723375406,1.40913486,3089.2,3089.1,5.5553]
[1641723375608,2.21903486,3089.2,3089.1,5.5553]
[1641723376006,0.8099,3089.2,3089.1,5.5553]
[1641723376608,0.8099,3089.2,3089.1,8.31374604]
[1641723377509,0.8099,3089.2,3089.1,8.26374604]
[1641723384693,1.8099,3089.2,3089.1,8.26374604]
[1641723384893,0.8099,3089.2,3089.1,8.26374604]
[1641723387041,0.04554495,3089.3,3089.1,9.50018472]
[1641723387244,57.63704108,3089.4,3089.1,9.50018472]
[1641723387442,1.0,3089.3,3089.2,0.00284212]
[1641723387842,1.8098109,3089.3,3089.2,0.00284212]
[1641723388242,1.8098109,3089.3,3089.2,2.76131433]
[1641723388991,3.4294709,3089.3,3089.2,2.76131433]
[1641723389693,2.4294709,3089.3,3089.2,2.76131433]
[1641723390794,3.4294709,3089.3,3089.2,2.76131433]
[1641723395346,3.5103909,3089.3,3089.2,2.76131433]
[1641723396586,3.4294709,3089.3,3089.2,2.76131433]
[1641723398687,2.4294709,3089.3,3089.2,2.76131433]
[1641723400087,3.4294709,3089.3,3089.2,2.76131433]
[1641723402842,7.28846226,3089.3,3089.2,2.76131433]
[1641723403046,7.88846226,3089.3,3089.2,2.76131433]
[1641723403241,14.35856226,3089.3,3089.2,2.76131433]
[1641723403842,14.35856226,3089.3,3089.2,0.00284212]
[1641723404099,10.4995709,3089.3,3089.2,0.00284212]
[1641723404300,1.61981,3089.1,3088.9,0.00454739]
[1641723404700,1.61977,3089.0,3088.9,0.00454739]
[1641723404899,1.61977,3089.0,3088.9,5.45454739]
[1641723405099,2.61988,3089.0,3088.9,0.00454739]
[1641723405304,2.91988,3089.0,3088.9,0.00454739]
[1641723406102,3.72975,3089.0,3088.9,0.00454739]
[1641723406301,5.65,3088.9,3088.8,1.23697437]
[1641723406501,3.93092,3088.9,3088.8,1.23697437]
[1641723406702,11.40102,3088.9,3088.8,1.23697437]
[1641723406902,11.40102,3088.9,3088.6,6.9718872]
[1641723406903,8.85,3088.7,3088.6,6.9718872]
[1641723407102,16.91633,3088.7,3088.6,6.9718872]
[1641723407303,15.77089473,3088.6,3088.4,2.47393079]
[1641723407503,18.87155,3088.5,3088.1,3.29857439]
[1641723407744,1.02129,3088.4,3088.1,3.29857439]
[1641723408038,5.61041,3088.2,3087.8,2.47292449]
[1641723408242,7.3614565,3088.1,3087.8,2.47292449]
[1641723408438,0.81046,3087.8,3087.6,2.77015714]
[1641723408639,0.08096,3087.7,3087.6,2.72015714]
[1641723408837,0.08096,3087.7,3087.0,0.9325992]
[1641723409038,0.38096,3087.7,3087.0,0.9325992]
[1641723409241,2.30186,3087.7,3087.0,0.9325992]
[1641723409439,2.30186,3087.7,3087.5,0.0022737]
[1641723409440,8.15,3087.6,3087.5,0.0022737]
[1641723409640,15.73055,3087.6,3087.5,0.0022737]
[1641723409838,10.88682973,3087.6,3087.2,6.16]
[1641723410039,1.31568144,3087.3,3087.2,6.16]
[1641723410239,1.31568144,3087.3,3087.0,0.9325992]
[1641723410240,7.78578144,3087.3,3087.0,0.9325992]
[1641723410443,1.6209393,3087.2,3087.0,0.9325992]
[1641723410639,3.4314093,3087.2,3087.1,0.00454739]
[1641723410842,3.4314093,3087.2,3087.1,5.35454739]
[1641723411042,1.81047,3087.2,3087.1,5.35454739]
[1641723411240,1.81047,3087.2,3087.1,0.00454739]
[1641723413694,8.28057,3087.2,3087.1,0.00454739]
[1641723414494,9.55088664,3087.2,3087.1,0.00454739]
[1641723414694,8.28057,3087.2,3087.1,0.00454739]
[1641723415266,57.68769867,3087.2,3087.1,0.00454739]
[1641723415450,6.4701,3087.2,3087.1,0.00454739]
[1641723415851,6.4701,3087.2,3087.1,19.81954739]
[1641723416056,3.5542,3087.2,3087.1,0.46954739]
[1641723416452,3.5477184,3087.2,3087.1,13.81954739]
[1641723416751,3.5477184,3087.2,3087.1,13.90051739]
[1641723416951,3.5477184,3087.2,3087.1,13.81954739]
[1641723417153,3.54422792,3087.2,3087.1,20.21954739]
[1641723417353,3.54422792,3087.2,3087.1,13.81954739]
[1641723417953,3.54422792,3087.2,3087.1,0.46954739]
[1641723418155,3.54422792,3087.2,3087.1,4.60934476]
[1641723418355,3.54422792,3087.2,3087.1,4.14434476]
[1641723418998,4.35454792,3087.2,3087.1,0.00454739]
[1641723419597,4.35454792,3087.2,3087.1,2.7646452]
[1641723419799,3.54422792,3087.2,3087.1,12.5646452]
[1641723420400,3.54422792,3087.2,3087.1,2.7646452]
[1641723422750,3.54422792,3087.2,3087.1,8.7646452]
[1641723423743,3.54422792,3087.2,3087.1,14.3646452]
[1641723424739,2.792e-05,3087.2,3087.1,22.5146452]
[1641723425342,1.94596698,3088.0,3087.2,13.55]
[1641723425343,0.8102153,3087.9,3087.2,13.55]
[1641723425541,0.8102153,3087.9,3087.3,0.08096]
[1641723425742,3.56641698,3088.0,3087.3,0.08437054]
[1641723425941,3.56641698,3088.0,3087.4,0.00284212]
[1641723425942,1.94596698,3088.0,3087.4,0.00284212]
[1641723426344,1.94596698,3088.0,3087.2,13.55]
[1641723426345,1.94596698,3088.0,3087.3,0.00341054]
[1641723426590,0.81023,3087.7,3087.3,0.00341054]
[1641723426791,0.81023,3087.7,3087.3,2.76324771]
[1641723426991,0.08096,3087.9,3087.4,0.08096]
[1641723427291,0.08096,3087.9,3087.5,0.0022737]
[1641723427493,0.29007748,3088.0,3087.5,0.0022737]
[1641723427690,0.81016,3087.9,3087.5,0.0022737]
[1641723427890,0.81016,3087.9,3087.5,2.76194514]
[1641723428090,1.91044968,3088.0,3087.5,2.76194514]
[1641723428290,1.91044968,3088.0,3087.6,0.00170527]
[1641723428491,0.81017,3087.9,3087.6,0.00170527]
[1641723429492,0.81017,3087.9,3087.5,0.0022737]
[1641723429692,0.81017,3087.9,3087.6,0.00170527]
[1641723429693,0.81027,3087.7,3087.6,0.00170527]
[1641723429893,0.81027,3087.7,3087.5,0.0022737]
[1641723430091,0.81019,3087.8,3087.5,0.0022737]
[1641723430839,0.81023,3087.7,3087.5,2.75983892]
[1641723431042,0.81019,3087.8,3087.5,2.75983892]
[1641723431247,1.6204137,3087.8,3087.6,0.00170527]
[1641723431642,0.81019,3087.8,3087.6,0.00170527]
[1641723431841,0.81023,3087.7,3087.6,0.00170527]
[1641723432045,0.81023,3087.7,3087.6,2.75982464]
[1641723432442,0.81023,3087.7,3087.6,2.76152991]
[1641723432643,1.19119,3087.7,3087.6,2.76152991]
[1641723433043,2.19119,3087.7,3087.6,2.76152991]
[1641723433443,2.19119,3087.7,3087.6,0.00170527]
[1641723433844,1.6206725,3087.6,3087.2,0.00397897]
[1641723434096,0.81035,3087.4,3087.2,0.00397897]
[1641723434894,1.6207,3087.4,3087.2,0.00397897]
[1641723435194,4.3739439,3087.4,3087.2,0.00397897]
[1641723435393,0.08096,3087.3,3087.2,0.00397897]
[1641723435592,0.38096,3087.3,3087.2,0.00397897]
[1641723435791,0.08096,3087.3,3087.2,0.00397897]
[1641723436597,3.5120039,3087.4,3087.2,0.00397897]
[1641723436794,2.5120039,3087.4,3087.2,0.00397897]
[1641723437394,1.0,3087.3,3087.2,0.00397897]
[1641723437846,0.8103722,3087.2,3087.0,0.83657817]
[1641723438055,0.81038,3087.1,3087.0,0.83657817]
[1641723438443,0.81038,3087.1,3087.0,0.83771502]
[1641723438845,0.81038,3087.1,3087.0,3.59805999]
[1641723439444,0.81038,3087.1,3087.0,0.83771502]
[1641723439844,1.6206,3087.4,3087.0,0.83771502]
[1641723440046,1.0,3087.5,3087.0,0.83771502]
[1641723440245,1.0,3087.5,3087.0,3.59813237]
[1641723440445,0.00113685,3087.4,3087.0,3.59813237]
[1641723440846,0.00170527,3087.5,3087.1,2.76019653]
[1641723441047,0.81032,3087.3,3087.1,2.76019653]
[1641723442092,2.6207146,3087.3,3087.1,2.76019653]
[1641723444195,0.81032,3087.3,3087.1,2.76019653]
[1641723444993,0.00170527,3087.5,3087.1,2.76019653]
[1641723445640,0.00170527,3087.5,3087.2,0.08096]
[1641723447441,0.00170527,3087.5,3087.3,2.75994638]
[1641723449200,0.81197527,3087.5,3087.3,2.75994638]
[1641723449596,0.00170527,3087.5,3087.3,2.75994638]
[1641723449995,0.00170527,3087.5,3087.4,20.29596]
[1641723451194,0.00170527,3087.5,3087.4,28.84433953]
[1641723451994,0.00170527,3087.5,3087.4,27.1952137]
[1641723454542,0.00170527,3087.5,3087.4,28.0052237]
[1641723455847,5.43090633,3088.6,3087.5,19.75]
[1641723456046,5.34994633,3088.6,3087.9,2.4296622]
[1641723456245,5.34994633,3088.6,3088.0,0.54594]
[1641723457193,5.34994633,3088.6,3088.2,2.85656113]
[1641723457194,5.32089473,3088.6,3088.2,2.85656113]
[1641723457394,5.32089473,3088.6,3088.3,0.54593]
[1641723458195,5.32089473,3088.6,3088.4,1.23694781]
[1641723458395,5.32089473,3088.6,3088.5,17.265]
[1641723458795,5.32714739,3088.6,3088.5,0.465]
[1641723459396,5.32714739,3088.6,3088.5,16.215]
[1641723459596,5.32714739,3088.6,3088.5,18.97431437]
[1641723463246,5.32714739,3088.6,3088.5,18.98197916]
[1641723466100,0.08093,3089.5,3088.6,25.07089473]
[1641723466300,0.05,3089.8,3088.7,0.54592]
[1641723466500,0.00284212,3089.1,3088.8,3.926]
[1641723466699,0.00284212,3089.1,3088.9,1.60828462]
[1641723466899,0.05,3089.8,3089.0,24.8578]
[1641723467099,0.05,3089.8,3089.1,0.54592]
[1641723467301,0.00625266,3089.7,3089.1,1.77932]
[1641723467601,0.00568423,3089.6,3089.1,1.77932]
[1641723467845,0.00284212,3089.8,3089.2,17.75]
[1641723468047,0.00284212,3089.8,3089.2,18.21727369]
[1641723468247,1.94489465,3089.7,3089.3,0.00934543]
[1641723468644,1.94489465,3089.7,3089.4,0.00113684]
[1641723469243,1.94489465,3089.7,3089.4,2.75983602]
[1641723469842,0.00284212,3089.8,3089.4,2.75983602]
[1641723470649,0.00284212,3089.8,3089.4,0.00113684]
[1641723471346,0.00284212,3089.8,3089.4,2.75976131]
[1641723471792,0.00284212,3089.8,3089.4,3.22476131]
[1641723472192,0.00284212,3089.8,3089.4,0.46613684]
[1641723472792,0.00284212,3089.8,3089.5,2.75850288]
[1641723473196,0.00284212,3089.8,3089.6,0.00763151]
[1641723475548,0.00284212,3089.8,3089.7,20.215]
[1641723475946,0.00397897,3089.8,3089.7,20.215]
[1641723476647,0.00397897,3089.8,3089.7,22.97322242]
[1641723478645,0.00397897,3089.8,3089.7,20.215]
[1641723480097,0.00397897,3089.8,3089.7,22.97317502]
[1641723481097,0.00397897,3089.8,3089.7,3.22317502]
[1641723481699,0.00397897,3089.8,3089.7,0.465]
[1641723482754,0.00397897,3089.8,3089.6,3.98893151]
[1641723483345,0.00397897,3089.8,3089.6,3.9813]
[1641723486250,0.00397897,3089.8,3089.6,4.4463]
[1641723486900,0.00397897,3089.8,3089.7,22.5084022]
[1641723488297,0.00397897,3089.8,3089.7,22.51602939]
[1641723490444,0.00397897,3089.8,3089.7,22.59693939]
[1641723493348,0.00397897,3089.8,3089.7,2.84693939]
[1641723493547,0.00397897,3089.8,3089.7,3.31193939]
[1641723493996,0.00397897,3089.8,3089.7,19.26193939]
[1641723494198,0.00113685,3089.8,3089.7,19.26193939]
[1641723496503,0.00113685,3089.8,3089.7,19.48102939]
[1641723496701,0.00113685,3089.8,3089.7,38.34102939]
[1641723496903,3.685e-05,3089.8,3089.7,42.44102939]
[1641723497101,3.685e-05,3089.8,3089.7,43.44102939]
[1641723497301,3.685e-05,3089.8,3089.7,19.78102939]
[1641723497503,3.685e-05,3089.8,3089.7,23.91822076]
[1641723497748,3.685e-05,3089.8,3089.7,49.58822076]
[1641723498543,0.00284212,3090.2,3089.8,19.75076315]
[1641723498743,0.00284212,3090.2,3090.1,26.36921]
[1641723498947,0.00284212,3090.2,3090.1,31.90271]
[1641723499544,0.00284212,3090.2,3090.1,32.7119133]
[1641723500745,0.00284212,3090.2,3090.1,51.5719133]
[1641723502094,0.00284212,3090.2,3090.1,58.46666877]
[1641723502495,0.00284212,3090.2,3090.1,39.60666877]
[1641723502697,0.00284212,3090.2,3090.1,40.84020083]
[1641723503096,0.00284212,3090.2,3090.1,59.70020083]
[1641723503396,0.00284212,3090.2,3090.1,59.70781505]
[1641723503798,0.00284212,3090.2,3090.1,58.47428299]
[1641723503996,0.00284212,3090.2,3090.1,39.61428299]
[1641723504396,0.00284212,3090.2,3090.1,39.61435299]
[1641723504996,0.00284212,3090.2,3090.1,40.84773711]
[1641723506546,0.00284212,3090.2,3090.1,39.61435299]
[1641723507348,0.00284212,3090.2,3090.1,40.84798595]
[1641723507544,0.00284212,3090.2,3090.1,20.28870595]
[1641723508645,0.80934,3091.0,3090.2,14.35]
[1641723508846,0.8093,3091.2,3090.3,0.465]
[1641723509093,0.00511581,3090.7,3090.3,1.7142]
[1641723509495,0.00454739,3090.6,3090.3,1.7142]
[1641723509894,1.94379201,3091.4,3090.3,1.7142]
[1641723509895,0.00397897,3090.5,3090.4,17.80785966]
[1641723510094,0.00397897,3090.5,3090.4,18.27285966]
[1641723511403,0.00397897,3090.5,3090.4,3.22285966]
[1641723511798,0.00397897,3090.5,3090.4,15.47285966]
[1641723512851,0.00397897,3090.5,3090.4,22.97285966]
[1641723513251,0.00397897,3090.5,3090.4,22.980464]
[1641723514150,0.00397897,3090.5,3090.4,27.11697248]
[1641723515353,0.00397897,3090.5,3090.4,28.35248241]
[1641723516912,0.00397897,3090.5,3090.4,47.29337241]
[1641723516913,7.897e-05,3090.5,3090.4,47.29337241]
[1641723517108,7.897e-05,3090.5,3090.4,53.70337241]
[1641723517309,7.897e-05,3090.5,3090.4,54.70337241]
[1641723519109,7.897e-05,3090.5,3090.4,55.11477691]
[1641723519809,7.897e-05,3090.5,3090.4,58.97937691]
[1641723520110,7.897e-05,3090.5,3090.4,40.11937691]
[1641723520351,7.897e-05,3090.5,3090.4,58.97937691]
[1641723521147,7.897e-05,3090.5,3090.4,57.33246248]
[1641723522547,7.897e-05,3090.5,3090.4,38.47246248]
[1641723522748,7.897e-05,3090.5,3090.4,57.33246248]
[1641723523349,7.897e-05,3090.5,3090.4,58.56709441]
[1641723524197,7.897e-05,3090.5,3090.4,57.33246248]
[1641723524395,7.897e-05,3090.5,3090.4,38.47246248]
[1641723524798,7.897e-05,3090.5,3090.4,58.56679718]
[1641723525798,7.897e-05,3090.5,3090.4,57.33246248]
[1641723525996,7.897e-05,3090.5,3090.4,38.47246248]
[1641723526497,7.897e-05,3090.5,3090.4,37.47246248]
[1641723527200,7.897e-05,3090.5,3090.4,56.33246248]
[1641723527598,7.897e-05,3090.5,3090.4,56.25157248]
[1641723528347,7.897e-05,3090.5,3090.4,37.39157248]
[1641723529344,7.897e-05,3090.5,3090.4,56.25157248]
[1641723529949,7.897e-05,3090.5,3090.4,38.62642036]
[1641723530545,7.897e-05,3090.5,3090.4,37.39157248]
[1641723531044,7.897e-05,3090.5,3090.4,38.62660833]
[1641723532097,7.897e-05,3090.5,3090.4,57.48660833]